[Event "44th Chess Olympiad Open 2022"]
[Site "Chennai"]
[Date "2022.08.05"]
[Round "7.34"]
[White "Poh, Yu Tian"]
[Black "Sanchez, Sebastian Felipe"]
[Result "0-1"]
[ECO "B12"]
[WhiteElo "2118"]
[BlackElo "2440"]
[Annotator "ChessBase"]
[PlyCount "86"]
[EventDate "2022.07.29"]
[EventType "team-tourn"]
[EventCountry "IND"]
[SourceTitle "playchess.com"]
[Source "ChessBase"]
[SourceQuality "1"]
[WhiteTeam "Malaysia"]
[BlackTeam "Colombia"]
[WhiteTeamCountry "MAS"]
[BlackTeamCountry "COL"]
[TimeControl "40/5400+30:1800+30"]

1. e4 {[%emt 0:00:03]} c6 {[%emt 0:00:06]} 2. d4 {[%emt 0:00:05]} d5 {[%emt 0:00:05]} 3. e5 {[%emt 0:00:03]} Bf5 {[%emt 0:00:28]} 4. h4 {[%emt 0:00:05]} h5 {[%emt 0:00:47]} 5. Bd3 {[%emt 0:00:09]} Bxd3 {[%emt 0:00:09]} 6. Qxd3 {[%emt 0:00:08]} Qa5+ {[%emt 0:00:07]} 7. Nd2 {[%emt 0:00:06]} e6 {[%emt 0:00:06]} 8. Ngf3 {[%emt 0:00:08]} Ne7 {[%emt 0:00:06]} 9. O-O {[%emt 0:00:26]} Nf5 {[%emt 0:00:04]} 10. Nb3 {[%emt 0:00:32]} Qa6 {[%emt 0:00:36]} 11. Qd1 {[%emt 0:00:07]} c5 {[%emt 0:01:20]} 12. dxc5 {[%emt 0:11:01]} Nd7 {[%emt 0:00:09]} 13. Bg5 {[%emt 0:02:19]} Bxc5 {[%emt 0:00:52]} 14. c3 {[%emt 0:03:35]} Rc8 {[%emt 0:20:44]} 15. Re1 {[%emt 0:11:45]} Qa4 {[%emt 0:04:16]} 16. Rc1 {[%emt 0:10:50]} O-O {[%emt 0:05:54]} 17. a3 {[%emt 0:10:17]} Nb6 {[%emt 0:10:59]} 18. Nxc5 {[%emt 0:03:53]} Qxd1 {[%emt 0:04:32]} 19. Rexd1 {[%emt 0:00:11]} Rxc5 {[%emt 0:00:04]} 20. Nd4 {[%emt 0:00:21]} Nxd4 {[%emt 0:04:44]} 21. cxd4 {[%emt 0:03:57]} Rxc1 {[%emt 0:08:30]} 22. Rxc1 {[%emt 0:00:05]} f6 {[%emt 0:00:06]} 23. exf6 {[%emt 0:02:26]} gxf6 {[%emt 0:00:05]} 24. Bf4 {[%emt 0:00:17]} Rc8 {[%emt 0:00:15]} 25. Rxc8+ {[%emt 0:03:29]} Nxc8 {[%emt 0:00:03]} 26. f3 {[%emt 0:01:11]} Ne7 {[%emt 0:00:47]} 27. g4 {[%emt 0:00:33]} Nc6 {[%emt 0:00:46]} 28. Be3 {[%emt 0:00:16]} Kh7 {[%emt 0:01:30]} 29. Kf2 {[%emt 0:02:04]} Kg6 {[%emt 0:00:57]} 30. Kg3 {[%emt 0:03:57]} b5 {[%emt 0:10:39]} 31. Kf2 {[%emt 0:02:32]} a5 {[%emt 0:08:12]} 32. b3 {[%emt 0:03:26]} a4 {[%emt 0:01:15]} 33. bxa4 {[%emt 0:00:07]} bxa4 {[%emt 0:00:03]} 34. Ke2 {[%emt 0:02:06]} f5 {[%emt 0:01:12]} 35. g5 {[%emt 0:01:56]} f4 {[%emt 0:00:18]} 36. Bf2 {[%emt 0:01:01]} Na7 {[%emt 0:04:13]} 37. Be1 {[%emt 0:07:09]} Nb5 {[%emt 0:00:07]} 38. Kd3 {[%emt 0:02:47]} Nxa3 {[%emt 0:00:06]} 39. Bb4 {[%emt 0:00:28]} Nc4 {[%emt 0:01:07]} 40. Kc3 {[%emt 0:01:23]} Kf5 {[%emt 0:00:11]} 41. Bc5 {[%emt 0:30:59]} a3 {[%emt 0:30:15]} 42. Kb3 {[%emt 0:00:12]} Nd2+ {[%emt 0:00:08]} 43. Kxa3 {[%emt 0:00:05]} Nxf3 {[%emt 0:00:05]} 0-1

[Event "44th Chess Olympiad Open 2022"]
[Site "Chennai"]
[Date "2022.08.05"]
[Round "7.35"]
[White "Pasko, Llambi"]
[Black "Johnson, Joshua"]
[Result "1-0"]
[ECO "D47"]
[WhiteElo "2418"]
[BlackElo "2178"]
[Annotator "ChessBase"]
[PlyCount "73"]
[EventDate "2022.07.29"]
[EventType "team-tourn"]
[EventCountry "IND"]
[SourceTitle "playchess.com"]
[Source "ChessBase"]
[SourceQuality "1"]
[WhiteTeam "Albania"]
[BlackTeam "TTO"]
[WhiteTeamCountry "ALB"]
[TimeControl "40/5400+30:1800+30"]

1. d4 {[%emt 0:00:01]} d5 {[%emt 0:00:09]} 2. c4 {[%emt 0:00:12]} c6 {[%emt 0:00:09]} 3. Nf3 {[%emt 0:00:15]} Nf6 {[%emt 0:00:10]} 4. Nc3 {[%emt 0:00:26]} e6 {[%emt 0:00:16]} 5. e3 {[%emt 0:00:08]} Nbd7 {[%emt 0:00:20]} 6. Bd3 {[%emt 0:00:17]} dxc4 {[%emt 0:00:36]} 7. Bxc4 {[%emt 0:00:07]} b5 {[%emt 0:00:06]} 8. Be2 {[%emt 0:00:08]} Bb7 {[%emt 0:09:07]} 9. O-O {[%emt 0:05:29]} Bd6 {[%emt 0:14:40]} 10. e4 {[%emt 0:07:06]} e5 {[%emt 0:00:18]} 11. Bg5 {[%emt 0:13:44]} b4 {[%emt 0:16:35]} 12. Na4 {[%emt 0:04:00]} h6 {[%emt 0:00:31]} 13. Bh4 {[%emt 0:00:46]} O-O {[%emt 0:03:07]} 14. Rc1 {[%emt 0:11:12]} Qe7 {[%emt 0:07:14]} 15. dxe5 {[%emt 0:01:46]} Nxe5 {[%emt 0:00:06]} 16. Nd4 {[%emt 0:00:07]} Rad8 {[%emt 0:22:32]} 17. Nf5 {[%emt 0:00:51]} Qe6 {[%emt 0:00:10]} 18. Nxd6 {[%emt 0:00:49]} Rxd6 {[%emt 0:00:45]} 19. Qc2 {[%emt 0:00:12]} Ned7 {[%emt 0:12:12]} 20. Bg3 {[%emt 0:10:08]} Rd4 {[%emt 0:00:04]} 21. e5 {[%emt 0:00:12]} Ne4 {[%emt 0:02:34]} 22. Bc4 {[%emt 0:07:16]} Qe7 {[%emt 0:01:54]} 23. Rfe1 {[%emt 0:00:59]} c5 {[%emt 0:00:25]} 24. Bf4 {[%emt 0:02:22]} Nxe5 {[%emt 0:02:28]} 25. Bf1 {[%emt 0:00:43]} Ng6 {[%emt 0:05:52]} 26. Be3 {[%emt 0:00:28]} Qd7 {[%emt 0:00:36]} 27. Bxd4 {[%emt 0:01:19]} cxd4 {[%emt 0:00:04]} 28. Qc7 {[%emt 0:03:50]} Qd5 {[%emt 0:00:16]} 29. Rxe4 {[%emt 0:00:36]} Rc8 {[%emt 0:01:00]} 30. Qxc8+ {[%emt 0:01:12]} Bxc8 {[%emt 0:00:02]} 31. Rxc8+ {[%emt 0:00:12]} Kh7 {[%emt 0:00:02]} 32. Nc5 {[%emt 0:05:36]} f5 {[%emt 0:00:31]} 33. Ree8 {[%emt 0:03:46]} Qxa2 {[%emt 0:00:50]} 34. Ne6 {[%emt 0:04:44]} Qxb2 {[%emt 0:00:56]} 35. Rc7 {[%emt 0:00:31]} h5 {[%emt 0:00:17]} 36. Rxg7+ {[%emt 0:00:15]} Kh6 {[%emt 0:00:15]} 37. Reg8 {[%emt 0:00:19]} 1-0

[Event "44th Chess Olympiad Open 2022"]
[Site "Chennai"]
[Date "2022.08.05"]
[Round "7.35"]
[White "Mehmeti, Dritan"]
[Black "Munro, Allan"]
[Result "1-0"]
[ECO "D00"]
[WhiteElo "2371"]
[BlackElo "2008"]
[Annotator "ChessBase"]
[PlyCount "57"]
[EventDate "2022.07.29"]
[EventType "team-tourn"]
[EventCountry "IND"]
[SourceTitle "playchess.com"]
[Source "ChessBase"]
[SourceQuality "1"]
[WhiteTeam "Albania"]
[BlackTeam "TTO"]
[WhiteTeamCountry "ALB"]
[TimeControl "40/5400+30:1800+30"]

1. d4 {[%emt 0:02:16]} d5 {[%emt 0:00:17]} 2. Bg5 {[%emt 0:00:48]} h6 {[%emt 0:00:38]} 3. Bh4 {[%emt 0:00:05]} c6 {[%emt 0:00:52]} 4. Nf3 {[%emt 0:01:20]} Qb6 {[%emt 0:00:47]} 5. b3 {[%emt 0:09:32]} Bf5 {[%emt 0:01:55]} 6. e3 {[%emt 0:00:17]} e6 {[%emt 0:01:02]} 7. Bd3 {[%emt 0:01:59]} Bxd3 {[%emt 0:01:11]} 8. Qxd3 {[%emt 0:00:10]} Nd7 {[%emt 0:02:46]} 9. O-O {[%emt 0:04:30]} Ne7 {[%emt 0:01:00]} 10. e4 {[%emt 0:08:50]} dxe4 {[%emt 0:08:29]} 11. Qxe4 {[%emt 0:00:00]} Nf5 {[%emt 0:13:31]} 12. Qxf5 {[%emt 0:08:12]} g5 {[%emt 0:02:15]} 13. Bxg5 {[%emt 0:07:11]} hxg5 {[%emt 0:17:33]} 14. Qxg5 {[%emt 0:01:31]} Bh6 {[%emt 0:03:08]} 15. Qh4 {[%emt 0:01:57]} Bg7 {[%emt 0:00:46]} 16. Qf4 {[%emt 0:02:34]} Bh6 {[%emt 0:01:22]} 17. Qe4 {[%emt 0:12:21]} O-O-O {[%emt 0:00:35]} 18. Na3 {[%emt 0:01:04]} Qa5 {[%emt 0:03:19]} 19. Nc4 {[%emt 0:02:24]} Qh5 {[%emt 0:00:06]} 20. Rad1 {[%emt 0:06:33]} Rdg8 {[%emt 0:06:19]} 21. Nce5 {[%emt 0:04:41]} f5 {[%emt 0:14:10]} 22. Qe2 {[%emt 0:04:23]} Nf6 {[%emt 0:00:22]} 23. g3 {[%emt 0:03:00]} Ne4 {[%emt 0:04:17]} 24. Qc4 {[%emt 0:03:08]} Ng5 {[%emt 0:03:55]} 25. Rd3 {[%emt 0:04:53]} Bg7 {[%emt 0:05:43]} 26. h4 {[%emt 0:00:38]} Bxe5 {[%emt 0:01:31]} 27. Nxg5 {[%emt 0:00:14]} Rxg5 {[%emt 0:01:01]} 28. Qxe6+ {[%emt 0:01:01]} Kc7 {[%emt 0:01:38]} 29. Qe7+ {[%emt 0:01:21]} 1-0

[Event "44th Chess Olympiad Open 2022"]
[Site "Chennai"]
[Date "2022.08.05"]
[Round "7.35"]
[White "Winter Atwell, Adrian"]
[Black "Veleshnja, Zino"]
[Result "0-1"]
[ECO "B90"]
[WhiteElo "2250"]
[BlackElo "2263"]
[Annotator "NA RC"]
[PlyCount "104"]
[EventDate "2022.07.29"]
[EventType "team-tourn"]
[EventCountry "IND"]
[SourceTitle "playchess.com"]
[Source "ChessBase"]
[SourceQuality "1"]
[WhiteTeam "TTO"]
[BlackTeam "Albania"]
[BlackTeamCountry "ALB"]
[TimeControl "40/5400+30:1800+30"]

1. e4 {[%emt 0:00:26]} c5 {[%emt 0:00:05]} 2. Nf3 {[%emt 0:00:56]} d6 {[%emt 0:00:04]} 3. d4 {[%emt 0:00:35]} cxd4 {[%emt 0:00:27]} 4. Nxd4 {[%emt 0:00:27]} Nf6 {[%emt 0:00:04]} 5. Nc3 {[%emt 0:00:21]} a6 {[%emt 0:00:05]} 6. h3 {[%emt 0:01:33]} e5 {[%emt 0:00:50]} 7. Nb3 {[%emt 0:00:53]} Be7 {[%emt 0:01:20]} 8. g4 {[%emt 0:06:08]} h6 {[%emt 0:03:22]} 9. Be3 {[%emt 0:03:22]} Be6 {[%emt 0:00:30]} 10. Bg2 {[%emt 0:00:39]} Nbd7 {[%emt 0:10:29]} 11. f4 {[%emt 0:03:09]} exf4 {[%emt 0:04:31]} 12. Bxf4 {[%emt 0:00:08]} Ne5 {[%emt 0:05:27]} 13. Qd4 {[%emt 0:07:23]} Rc8 {[%emt 0:09:29]} 14. O-O-O {[%emt 0:02:42]} Rc4 {[%emt 0:02:22]} 15. Qf2 {[%emt 0:03:52]} Qc7 {[%emt 0:01:49]} 16. Nd4 {[%emt 0:04:18]} Rxc3 {[%emt 0:08:41]} 17. bxc3 {[%emt 0:01:33]} Qxc3 {[%emt 0:01:19]} 18. Nb3 {[%emt 0:00:35]} Nc4 {[%emt 0:07:06]} 19. Qd4 {[%emt 0:01:06]} Qb4 {[%emt 0:00:33]} 20. Bd2 {[%emt 0:05:06]} Qa3+ {[%emt 0:00:59]} 21. Kb1 {[%emt 0:00:20]} Nd7 {[%emt 0:04:09]} 22. Bc1 {[%emt 0:00:47]} Qa4 {[%emt 0:00:21]} 23. Rhf1 {[%emt 0:04:14]} O-O {[%emt 0:04:23]} 24. Bb2 {[%emt 0:04:48]} Bf6 {[%emt 0:02:46]} 25. Rxf6 {[%emt 0:00:51]} Nxf6 {[%emt 0:00:09]} 26. Bf1 {[%emt 0:03:21]} Nxb2 {[%emt 0:07:49]} 27. Kxb2 {[%emt 0:00:21]} Qc6 {[%emt 0:01:27]} 28. Qxd6 {[%emt 0:02:20]} Qxe4 {[%emt 0:02:21]} 29. Bd3 {[%emt 0:06:25]} Qa4 {[%emt 0:04:11]} 30. Rg1 {[%emt 0:02:40]} Qd7 {[%emt 0:06:37]} 31. Qf4 {[%emt 0:01:12]} Nd5 {[%emt 0:04:23]} 32. Qe4 {[%emt 0:00:54]} g6 {[%emt 0:00:55]} 33. Nc5 {[%emt 0:02:19]} Qc6 {[%emt 0:01:41]} 34. Nxe6 {[%emt 0:02:37]} Qb6+ {[%emt 0:00:21]} 35. Ka3 {[%emt 0:05:43]} Qxe6 {[%emt 0:01:42]} 36. Qxe6 {[%emt 0:00:39]} fxe6 {[%emt 0:00:04]} 37. Bxg6 {[%emt 0:01:58]} Rf3+ {[%emt 0:00:06]} 38. Kb2 {[%emt 0:00:26]} Rxh3 {[%emt 0:01:54]} 39. Rf1 {[%emt 0:01:08]} Kg7 {[%emt 0:01:02]} 40. Be4 {[%emt 0:03:16]} Rg3 {[%emt 0:02:02]} 41. Bxd5 {[%emt 0:32:19]} exd5 {[%emt 0:02:54]} 42. Rf5 {[%emt 0:00:00]} Rxg4 {[%emt 0:00:49]} 43. Rxd5 {[%emt 0:00:00]} Rf4 {[%emt 0:03:00]} 44. Kc3 {[%emt 0:00:00]} b5 {[%emt 0:01:42]} 45. Kd3 {[%emt 0:00:00]} Ra4 {[%emt 0:00:28]} 46. Rc5 {[%emt 0:00:00]} Rxa2 {[%emt 0:00:35]} 47. Ke4 {[%emt 0:00:00]} Ra4+ {[%emt 0:01:16]} 48. Kf5 {[%emt 0:00:00]} Rc4 {[%emt 0:00:25]} 49. Rd5 {[%emt 0:00:00]} Rc7 {[%emt 0:01:03]} 50. Rd2 {[%emt 0:00:00]} a5 {[%emt 0:00:54]} 51. Rg2+ {[%emt 0:00:00]} Kh7 {[%emt 0:00:42]} 52. Kf6 {[%emt 0:00:00]} a4 {[%emt 0:00:22]} 0-1

[Event "44th Chess Olympiad Open 2022"]
[Site "Chennai"]
[Date "2022.08.05"]
[Round "7.35"]
[White "Mc Intosh, Isaiah"]
[Black "Ashiku, Franc"]
[Result "1-0"]
[ECO "E73"]
[WhiteElo "2215"]
[BlackElo "2422"]
[Annotator "ChessBase"]
[PlyCount "77"]
[EventDate "2022.07.29"]
[EventType "team-tourn"]
[EventCountry "IND"]
[SourceTitle "playchess.com"]
[Source "ChessBase"]
[SourceQuality "1"]
[WhiteTeam "TTO"]
[BlackTeam "Albania"]
[BlackTeamCountry "ALB"]
[TimeControl "40/5400+30:1800+30"]

1. d4 {[%emt 0:00:48]} Nf6 {[%emt 0:01:06]} 2. c4 {[%emt 0:00:06]} g6 {[%emt 0:00:18]} 3. Nc3 {[%emt 0:00:07]} Bg7 {[%emt 0:00:04]} 4. e4 {[%emt 0:00:05]} d6 {[%emt 0:00:02]} 5. Be2 {[%emt 0:00:04]} Na6 {[%emt 0:00:51]} 6. Be3 {[%emt 0:00:54]} O-O {[%emt 0:01:16]} 7. h3 {[%emt 0:14:33]} e5 {[%emt 0:06:49]} 8. d5 {[%emt 0:04:10]} Nc5 {[%emt 0:01:08]} 9. Bf3 {[%emt 0:01:22]} a5 {[%emt 0:08:08]} 10. g4 {[%emt 0:02:14]} Ne8 {[%emt 0:06:41]} 11. g5 {[%emt 0:03:06]} f5 {[%emt 0:03:22]} 12. h4 {[%emt 0:09:51]} Bd7 {[%emt 0:08:30]} 13. Qc2 {[%emt 0:12:18]} a4 {[%emt 0:02:21]} 14. O-O-O {[%emt 0:12:34]} f4 {[%emt 0:08:30]} 15. Bxc5 {[%emt 0:01:41]} dxc5 {[%emt 0:00:04]} 16. Be2 {[%emt 0:00:06]} Nd6 {[%emt 0:04:22]} 17. f3 {[%emt 0:00:13]} Qb8 {[%emt 0:08:19]} 18. Nb5 {[%emt 0:00:25]} Ra5 {[%emt 0:01:59]} 19. Nh3 {[%emt 0:08:15]} Rf7 {[%emt 0:18:05]} 20. Nf2 {[%emt 0:04:11]} b6 {[%emt 0:00:20]} 21. Bf1 {[%emt 0:06:34]} a3 {[%emt 0:05:49]} 22. b3 {[%emt 0:06:15]} Bxb5 {[%emt 0:00:41]} 23. cxb5 {[%emt 0:00:07]} Nxb5 {[%emt 0:00:11]} 24. Bxb5 {[%emt 0:03:47]} Rxb5 {[%emt 0:00:04]} 25. Nd3 {[%emt 0:00:58]} Qe8 {[%emt 0:00:28]} 26. h5 {[%emt 0:00:34]} Rd7 {[%emt 0:06:59]} 27. Rh4 {[%emt 0:01:52]} Kf7 {[%emt 0:06:17]} 28. hxg6+ {[%emt 0:02:58]} hxg6 {[%emt 0:00:02]} 29. Qc4 {[%emt 0:00:30]} Rd6 {[%emt 0:00:47]} 30. Rh7 {[%emt 0:00:15]} Ra5 {[%emt 0:00:21]} 31. Qc3 {[%emt 0:00:15]} Qg8 {[%emt 0:01:25]} 32. Rdh1 {[%emt 0:01:06]} Ke8 {[%emt 0:00:27]} 33. Nxf4 {[%emt 0:00:30]} c4 {[%emt 0:00:32]} 34. b4 {[%emt 0:00:26]} Ra4 {[%emt 0:00:30]} 35. Ne6 {[%emt 0:00:59]} Rxe6 {[%emt 0:00:26]} 36. dxe6 {[%emt 0:00:07]} Qf8 {[%emt 0:00:44]} 37. Qd2 {[%emt 0:00:28]} Qe7 {[%emt 0:00:30]} 38. Rxg7 {[%emt 0:00:27]} Qxg7 {[%emt 0:00:09]} 39. Rh8+ {[%emt 0:00:05]} 1-0

[Event "44th Chess Olympiad Open 2022"]
[Site "Chennai"]
[Date "2022.08.05"]
[Round "7.36"]
[White "Chukavin, Kirill"]
[Black "Chavez, Ricardo Ernesto"]
[Result "1-0"]
[ECO "B06"]
[WhiteElo "2418"]
[BlackElo "2179"]
[Annotator "ChessBase"]
[PlyCount "73"]
[EventDate "2022.07.29"]
[EventType "team-tourn"]
[EventCountry "IND"]
[SourceTitle "playchess.com"]
[Source "ChessBase"]
[SourceQuality "1"]
[WhiteTeam "Estonia"]
[BlackTeam "El Salvador"]
[WhiteTeamCountry "EST"]
[BlackTeamCountry "ESA"]
[TimeControl "40/5400+30:1800+30"]

1. e4 {[%emt 0:00:12]} g6 {[%emt 0:00:20]} 2. d4 {[%emt 0:00:22]} Bg7 {[%emt 0:00:08]} 3. Nc3 {[%emt 0:00:20]} d6 {[%emt 0:00:08]} 4. f4 {[%emt 0:00:24]} a6 {[%emt 0:00:21]} 5. Nf3 {[%emt 0:00:50]} b5 {[%emt 0:00:13]} 6. Bd3 {[%emt 0:00:17]} Nd7 {[%emt 0:00:11]} 7. a4 {[%emt 0:00:28]} b4 {[%emt 0:01:08]} 8. Ne2 {[%emt 0:00:11]} c5 {[%emt 0:02:42]} 9. c3 {[%emt 0:00:28]} bxc3 {[%emt 0:04:59]} 10. bxc3 {[%emt 0:00:13]} Bb7 {[%emt 0:00:41]} 11. O-O {[%emt 0:02:27]} e6 {[%emt 0:09:24]} 12. Ng3 {[%emt 0:09:20]} Ne7 {[%emt 0:13:44]} 13. Rb1 {[%emt 0:24:26]} Qc7 {[%emt 0:00:00]} 14. f5 {[%emt 0:11:02]} exf5 {[%emt 0:00:00]} 15. exf5 {[%emt 0:00:00]} O-O {[%emt 0:00:00]} 16. Kh1 {[%emt 0:06:34]} Nd5 {[%emt 0:02:45]} 17. Bd2 {[%emt 0:01:27]} Rab8 {[%emt 0:12:03]} 18. Qc1 {[%emt 0:10:34]} N7f6 {[%emt 0:05:13]} 19. Ne4 {[%emt 0:09:19]} Rfe8 {[%emt 0:03:17]} 20. Nxf6+ {[%emt 0:03:49]} Nxf6 {[%emt 0:00:32]} 21. Bg5 {[%emt 0:05:17]} Ne4 {[%emt 0:04:09]} 22. Bh6 {[%emt 0:02:16]} cxd4 {[%emt 0:08:37]} 23. Bxg7 {[%emt 0:01:06]} Kxg7 {[%emt 0:01:23]} 24. Qf4 {[%emt 0:03:47]} dxc3 {[%emt 0:12:55]} 25. Bxe4 {[%emt 0:01:42]} Rxe4 {[%emt 0:01:18]} 26. f6+ {[%emt 0:00:03]} Kf8 {[%emt 0:01:00]} 27. Qh6+ {[%emt 0:00:10]} Ke8 {[%emt 0:00:17]} 28. Qxh7 {[%emt 0:00:22]} c2 {[%emt 0:07:37]} 29. Rbe1 {[%emt 0:03:09]} Bd5 {[%emt 0:06:44]} 30. Rxe4+ {[%emt 0:01:49]} Bxe4 {[%emt 0:00:02]} 31. Qg8+ {[%emt 0:00:12]} Kd7 {[%emt 0:00:05]} 32. Qxf7+ {[%emt 0:00:04]} Kd8 {[%emt 0:01:28]} 33. Qf8+ {[%emt 0:00:48]} Kd7 {[%emt 0:00:09]} 34. Qe7+ {[%emt 0:00:11]} Kc8 {[%emt 0:02:48]} 35. Qe8+ {[%emt 0:00:13]} Kb7 {[%emt 0:00:34]} 36. Qxe4+ {[%emt 0:00:07]} Qc6 {[%emt 0:00:15]} 37. Qxc6+ {[%emt 0:00:18]} 1-0

[Event "44th Chess Olympiad Open 2022"]
[Site "Chennai"]
[Date "2022.08.05"]
[Round "7.36"]
[White "Kanep, Meelis"]
[Black "Morales Carlos"]
[Result "1-0"]
[ECO "E05"]
[WhiteElo "2417"]
[BlackElo "2036"]
[Annotator "ChessBase"]
[PlyCount "63"]
[EventDate "2022.07.29"]
[EventType "team-tourn"]
[EventCountry "IND"]
[SourceTitle "playchess.com"]
[Source "ChessBase"]
[SourceQuality "1"]
[WhiteTeam "Estonia"]
[BlackTeam "El Salvador"]
[WhiteTeamCountry "EST"]
[BlackTeamCountry "ESA"]
[TimeControl "40/5400+30:1800+30"]

1. Nf3 {[%emt 0:00:07]} e6 {[%emt 0:01:34]} 2. g3 {[%emt 0:00:36]} d5 {[%emt 0:00:07]} 3. Bg2 {[%emt 0:00:21]} Nf6 {[%emt 0:00:07]} 4. O-O {[%emt 0:00:30]} Be7 {[%emt 0:00:06]} 5. d4 {[%emt 0:00:38]} O-O {[%emt 0:00:15]} 6. c4 {[%emt 0:00:34]} dxc4 {[%emt 0:00:23]} 7. Na3 {[%emt 0:00:40]} c3 {[%emt 0:00:06]} 8. bxc3 {[%emt 0:01:24]} c5 {[%emt 0:00:10]} 9. Ne5 {[%emt 0:10:35]} Nfd7 {[%emt 0:05:29]} 10. Nac4 {[%emt 0:03:34]} Nxe5 {[%emt 0:03:26]} 11. Nxe5 {[%emt 0:01:09]} Nd7 {[%emt 0:02:43]} 12. Nd3 {[%emt 0:01:15]} Bd6 {[%emt 0:09:04]} 13. Rb1 {[%emt 0:17:07]} Qc7 {[%emt 0:03:03]} 14. f4 {[%emt 0:00:42]} Rb8 {[%emt 0:02:18]} 15. e4 {[%emt 0:10:32]} f5 {[%emt 0:12:07]} 16. e5 {[%emt 0:06:53]} Be7 {[%emt 0:03:23]} 17. Be3 {[%emt 0:06:05]} b5 {[%emt 0:16:38]} 18. g4 {[%emt 0:09:06]} Bb7 {[%emt 0:03:29]} 19. dxc5 {[%emt 0:06:39]} Nxc5 {[%emt 0:06:07]} 20. Bxb7 {[%emt 0:02:29]} Rxb7 {[%emt 0:03:09]} 21. gxf5 {[%emt 0:02:19]} Rxf5 {[%emt 0:07:00]} 22. Bd4 {[%emt 0:00:43]} Ne4 {[%emt 0:08:17]} 23. Qe1 {[%emt 0:02:50]} Qc6 {[%emt 0:00:54]} 24. Rc1 {[%emt 0:04:06]} g5 {[%emt 0:05:04]} 25. Qe2 {[%emt 0:08:13]} gxf4 {[%emt 0:03:04]} 26. Qf3 {[%emt 0:00:51]} Bh4 {[%emt 0:01:10]} 27. Nc5 {[%emt 0:00:47]} Nf2 {[%emt 0:02:11]} 28. Rxf2 {[%emt 0:01:20]} Bxf2+ {[%emt 0:00:11]} 29. Kxf2 {[%emt 0:00:05]} Qxf3+ {[%emt 0:01:06]} 30. Kxf3 {[%emt 0:00:02]} Re7 {[%emt 0:00:36]} 31. Ne4 {[%emt 0:00:31]} Rg7 {[%emt 0:00:38]} 32. Rb1 {[%emt 0:00:58]} 1-0

[Event "44th Chess Olympiad Open 2022"]
[Site "Chennai"]
[Date "2022.08.05"]
[Round "7.36"]
[White "Giron, Jorge Ernesto"]
[Black "Kiik, Kalle"]
[Result "1/2-1/2"]
[ECO "C08"]
[WhiteElo "2288"]
[BlackElo "2365"]
[Annotator "TA"]
[PlyCount "88"]
[EventDate "2022.07.29"]
[EventType "team-tourn"]
[EventCountry "IND"]
[SourceTitle "playchess.com"]
[Source "ChessBase"]
[SourceQuality "1"]
[WhiteTeam "El Salvador"]
[BlackTeam "Estonia"]
[WhiteTeamCountry "ESA"]
[BlackTeamCountry "EST"]
[TimeControl "40/5400+30:1800+30"]

{[%evp 12,88,23,8,22,10,19,24,22,20,12,21,35,22,33,28,37,39,54,10,10,12,11,19,26,18,20,20,37,26,36,16,13,13,15,13,14,0,0,0,0,0,29,0,0,0,0,0,0,0,0,0,0,0,0,0,0,0,0,0,0,0,0,0,0,0,0,0,0,0,0,0,0,0,0,0,0,0,0]} 1. e4 {[%emt 0:00:18]} e6 {[%emt 0:00:40]} 2. d4 {[%emt 0:00:07]} d5 {[%emt 0:00:07]} 3. Nd2 {[%emt 0:00:04]} c5 {[%emt 0:00:20]} 4. exd5 {[%emt 0:00:12]} exd5 {[%emt 0:00:25]} 5. Ngf3 {[%emt 0:00:30]} Nc6 {[%emt 0:00:26]} 6. Be2 {[%emt 0:00:19]} Nf6 {[%emt 0:01:20]} 7. O-O {[%emt 0:00:16]} Be6 {[%emt 0:09:12] C08: French Tarrasch: 3...c5 4 exd5 exd5 sidelines.} 8. Re1 {[%emt 0:07:04] [#]} cxd4 $146 {[%emt 0:04:28]} ({Resist} 8... Nxd4 9. Nxd4 cxd4 10. Bb5+ Nd7 11. Nf3 $14) ({Predecessor:} 8... c4 9. b3 cxb3 10. axb3 Bb4 11. Bb2 O-O 12. c3 Bd6 13. Nf1 Qb6 14. Bd3 h6 15. Ng3 {1-0 (61) Tiviakov,S (2608)-Salmensuu,O (2458) Gausdal 2000}) 9. Nb3 {[%emt 0:05:03]} Bb4 {[%emt 0:00:00] White has an edge.} 10. Bd2 {[%emt 0:00:07]} Bxd2 {[%emt 0:00:06]} 11. Qxd2 {[%emt 0:00:03]} Ne4 {[%emt 0:00:23]} 12. Qd1 {[%emt 0:01:06]} O-O {[%emt 0:09:58]} 13. Nfxd4 {[%emt 0:10:21]} Qh4 {[%emt 0:11:52]} 14. f3 {[%emt 0:00:35]} Nd6 {[%emt 0:08:02]} 15. Nxc6 {[%emt 0:05:54]} bxc6 {[%emt 0:00:10]} 16. Qd4 {[%emt 0:00:29]} Qxd4+ {[%emt 0:02:48]} 17. Nxd4 {[%emt 0:00:08]} c5 {[%emt 0:00:19]} 18. Nxe6 {[%emt 0:00:07]} fxe6 {[%emt 0:00:06]} 19. c4 {[%emt 0:00:05]} Rfd8 {[%emt 0:06:33]} 20. Rac1 {[%emt 0:05:03] Threatens to win with cxd5.} Rac8 {[%emt 0:01:03]} 21. Bd3 {[%emt 0:02:41]} dxc4 {[%emt 0:12:53]} 22. Bxc4 {[%emt 0:03:30]} Nxc4 {[%emt 0:00:08]} 23. Rxc4 $11 {[%emt 0:00:03][%mdl 4096] Endgame KRR-KRR} Rd2 {[%emt 0:00:14]} 24. Rxe6 {[%emt 0:08:36]} Rxb2 {[%emt 0:00:28]} 25. a3 {[%emt 0:00:04][%cal Ba2a3,Ba3a4][%mdl 32]} Rc7 {[%emt 0:02:39]} 26. h4 {[%emt 0:06:32]} Rb6 {[%emt 0:01:54]} 27. Re5 {[%emt 0:00:18]} Rb3 {[%emt 0:03:46] The position is equal.} 28. h5 {[%emt 0:00:25]} h6 {[%emt 0:06:16]} 29. Kh2 {[%emt 0:07:22]} Kh7 {[%emt 0:00:55]} 30. a4 {[%emt 0:23:57]} Rb4 {[%emt 0:03:21]} 31. Rxb4 {[%emt 0:04:25]} cxb4 {[%emt 0:00:07] KR-KR} 32. Rb5 {[%emt 0:00:03] Against Rb7} Rc4 {[%emt 0:07:48]} 33. Kh3 {[%emt 0:02:10]} b3 {[%emt 0:00:23]} 34. Rxb3 {[%emt 0:00:17]} Rxa4 {[%emt 0:00:08]} 35. Rb8 {[%emt 0:02:55]} a5 {[%emt 0:01:25]} 36. Ra8 {[%emt 0:02:01]} g5 {[%emt 0:05:17]} 37. hxg6+ {[%emt 0:00:52]} Kxg6 {[%emt 0:00:08]} 38. g4 {[%emt 0:00:39]} h5 {[%emt 0:01:45]} 39. Kh4 {[%emt 0:00:14]} hxg4 {[%emt 0:00:09]} 40. fxg4 {[%emt 0:00:03]} Ra1 {[%emt 0:00:32]} 41. Ra6+ {[%emt 0:30:04]} Kf7 {[%emt 0:30:11]} 42. Kg5 {[%emt 0:00:07]} a4 {[%emt 0:00:26]} 43. Ra7+ {[%emt 0:00:03]} Ke6 {[%emt 0:00:16]} 44. Kg6 {[%emt 0:02:48]} Kd5 {[%emt 0:00:00] Weighted Error Value: White=0.04 (flawless) /Black=0.04 (flawless)} 1/2-1/2